[Event "*** Titled Tuesday Blitz"]
[Site "Chess.com"]
[Date "2020.12.29"]
[Round "9"]
[White "elamier"]
[Black "KyronGriffith"]
[Result "1-0"]
[WhiteElo "2442"]
[BlackElo "2533"]
[TimeControl "180+1"]
[EndTime "11:45:35 PST"]
[Termination "elamier won by resignation"]

1. d4 {[%clk 0:03:00.9]} 1... Nf6 {[%clk 0:02:59.3]} 2. Bg5 {[%clk 0:02:58.5]}
2... c5 {[%clk 0:02:58.7]} 3. dxc5 {[%clk 0:02:57.8]} 3... Qa5+ {[%clk
0:02:56.3]} 4. Qd2 {[%clk 0:02:57]} 4... Qxc5 {[%clk 0:02:55.4]} 5. Nc3 {[%clk
0:02:57.4]} 5... d6 {[%clk 0:02:48.2]} 6. e4 {[%clk 0:02:57.2]} 6... Nc6 {[%clk
0:02:42.4]} 7. Bxf6 {[%clk 0:02:56.6]} 7... gxf6 {[%clk 0:02:40.5]} 8. Nd5
{[%clk 0:02:57.2]} 8... Kd8 {[%clk 0:01:51.5]} 9. Nf3 {[%clk 0:02:56.3]} 9... a5
{[%clk 0:01:40.4]} 10. c3 {[%clk 0:02:44.8]} 10... a4 {[%clk 0:01:37.4]} 11. Be2
{[%clk 0:02:39.4]} 11... h5 {[%clk 0:01:36.6]} 12. O-O {[%clk 0:02:37.2]} 12...
h4 {[%clk 0:01:37.1]} 13. Kh1 {[%clk 0:02:25.8]} 13... h3 {[%clk 0:01:35.5]} 14.
g3 {[%clk 0:02:25.4]} 14... Bh6 {[%clk 0:01:34.1]} 15. Qd3 {[%clk 0:02:20.8]}
15... Be6 {[%clk 0:01:20.1]} 16. b4 {[%clk 0:02:16.9]} 16... Qa7 {[%clk
0:01:11.7]} 17. b5 {[%clk 0:02:03.8]} 17... Ne5 {[%clk 0:01:07.5]} 18. Nxe5
{[%clk 0:02:02.7]} 18... fxe5 {[%clk 0:01:08.4]} 19. b6 {[%clk 0:02:01.5]} 19...
Qa5 {[%clk 0:01:06.5]} 20. Nc7 {[%clk 0:01:40.3]} 20... Rc8 {[%clk 0:01:04.3]}
21. Rab1 {[%clk 0:01:36.3]} 21... Bd7 {[%clk 0:00:54.6]} 22. Rfd1 {[%clk
0:01:21.6]} 22... Bc6 {[%clk 0:00:53.5]} 23. Bg4 {[%clk 0:01:15.2]} 23... Rxc7
{[%clk 0:00:49.6]} 24. bxc7+ {[%clk 0:01:14.1]} 24... Kxc7 {[%clk 0:00:50.5]}
25. Bxh3 {[%clk 0:01:08.9]} 25... Bf8 {[%clk 0:00:32.2]} 26. Bg2 {[%clk
0:01:07.9]} 26... e6 {[%clk 0:00:30.1]} 27. Kg1 {[%clk 0:01:04.4]} 27... Be7
{[%clk 0:00:30.4]} 28. Rb2 {[%clk 0:00:58.9]} 28... a3 {[%clk 0:00:30.8]} 29.
Rb4 {[%clk 0:00:57.5]} 29... Ra8 {[%clk 0:00:31.4]} 30. Rdb1 {[%clk 0:00:56.2]}
30... Qc5 {[%clk 0:00:32]} 31. Rc4 {[%clk 0:00:50.6]} 31... Qa5 {[%clk
0:00:31.2]} 32. Qf3 {[%clk 0:00:46.7]} 32... Rf8 {[%clk 0:00:30.1]} 33. Bf1
{[%clk 0:00:40.9]} 33... f5 {[%clk 0:00:28.6]} 34. Qe3 {[%clk 0:00:33.1]} 34...
f4 {[%clk 0:00:27.9]} 35. Qd2 {[%clk 0:00:29.5]} 35... fxg3 {[%clk 0:00:24.3]}
36. hxg3 {[%clk 0:00:29.3]} 36... Qa7 {[%clk 0:00:23.5]} 37. Bg2 {[%clk
0:00:25.2]} 37... Kd7 {[%clk 0:00:23.6]} 38. Bh3 {[%clk 0:00:23.9]} 38... Rh8
{[%clk 0:00:22.8]} 39. Bg2 {[%clk 0:00:20.9]} 39... Qa6 {[%clk 0:00:23.2]} 40.
Rcb4 {[%clk 0:00:20.2]} 40... Rg8 {[%clk 0:00:22.9]} 41. Rb6 {[%clk 0:00:19.6]}
41... Qa7 {[%clk 0:00:21.4]} 42. Qe3 {[%clk 0:00:17.9]} 42... Qa5 {[%clk
0:00:12.9]} 43. Bh3 {[%clk 0:00:17.1]} 43... Kc7 {[%clk 0:00:10]} 44. Bxe6
{[%clk 0:00:16.2]} 44... Rf8 {[%clk 0:00:10.5]} 45. Bd5 {[%clk 0:00:15.9]} 45...
Bxd5 {[%clk 0:00:10.4]} 46. exd5 {[%clk 0:00:16.1]} 46... Qxd5 {[%clk
0:00:11.3]} 47. Rxb7+ {[%clk 0:00:15.9]} 47... Qxb7 {[%clk 0:00:11.8]} 48. Rxb7+
{[%clk 0:00:15.8]} 48... Kxb7 {[%clk 0:00:12.7]} 49. Qe4+ {[%clk 0:00:16.1]}
49... Kc7 {[%clk 0:00:12.9]} 50. Qc4+ {[%clk 0:00:15.9]} 50... Kd7 {[%clk
0:00:13.1]} 51. Qa4+ {[%clk 0:00:15.4]} 51... Ke6 {[%clk 0:00:13.1]} 52. Qxa3
{[%clk 0:00:16]} 52... d5 {[%clk 0:00:13.7]} 53. Qb3 {[%clk 0:00:16.6]} 53...
Bd6 {[%clk 0:00:14.1]} 54. Kg2 {[%clk 0:00:16.9]} 54... Rb8 {[%clk 0:00:15]} 55.
Qc2 {[%clk 0:00:16.3]} 55... Rc8 {[%clk 0:00:15.5]} 56. Qg6+ {[%clk 0:00:16.7]}
56... Ke7 {[%clk 0:00:15.9]} 57. Qg7+ {[%clk 0:00:16.9]} 57... Kd8 {[%clk
0:00:14.7]} 58. a4 {[%clk 0:00:17.4]} 58... Rc7 {[%clk 0:00:14.1]} 59. Qg8+
{[%clk 0:00:16.6]} 59... Ke7 {[%clk 0:00:13.7]} 60. Qxd5 {[%clk 0:00:17]} 60...
Rxc3 {[%clk 0:00:13.8]} 61. a5 {[%clk 0:00:17]} 61... Rc5 {[%clk 0:00:13.6]} 62.
Qb7+ {[%clk 0:00:16.5]} 62... Bc7 {[%clk 0:00:13.3]} 63. a6 {[%clk 0:00:16.6]}
63... Kd6 {[%clk 0:00:13.8]} 64. a7 {[%clk 0:00:16.6]} 1-0

[Event "*** Titled Tuesday Blitz"]
[Site "Chess.com"]
[Date "2020.12.29"]
[Round "9"]
[White "maheswaran26"]
[Black "MIJuanReyesRosa"]
[Result "0-1"]
[WhiteElo "2212"]
[BlackElo "2078"]
[TimeControl "180+1"]
[EndTime "11:45:35 PST"]
[Termination "MIJuanReyesRosa won on time"]

1. d4 {[%clk 0:02:59.2]} 1... g6 {[%clk 0:02:59.5]} 2. Nf3 {[%clk 0:02:57.7]}
2... Bg7 {[%clk 0:02:57.9]} 3. c4 {[%clk 0:02:57.7]} 3... c5 {[%clk 0:02:56.2]}
4. d5 {[%clk 0:02:56.1]} 4... d6 {[%clk 0:02:53.6]} 5. Nc3 {[%clk 0:02:55.1]}
5... Bxc3+ {[%clk 0:02:51.9]} 6. bxc3 {[%clk 0:02:54.5]} 6... Qa5 {[%clk
0:02:52.4]} 7. Qb3 {[%clk 0:02:47]} 7... Nf6 {[%clk 0:02:41.9]} 8. a4 {[%clk
0:02:45.3]} 8... O-O {[%clk 0:02:36.8]} 9. Bg5 {[%clk 0:02:21]} 9... Nbd7 {[%clk
0:02:18.8]} 10. Nd2 {[%clk 0:02:15.8]} 10... Kg7 {[%clk 0:02:12.1]} 11. e4
{[%clk 0:02:08.4]} 11... h6 {[%clk 0:02:03.3]} 12. Bh4 {[%clk 0:02:06.6]} 12...
g5 {[%clk 0:01:59.2]} 13. Bg3 {[%clk 0:02:04.9]} 13... Nh5 {[%clk 0:01:59]} 14.
Be2 {[%clk 0:02:03.3]} 14... Nxg3 {[%clk 0:01:51.1]} 15. hxg3 {[%clk 0:02:01.2]}
15... Nf6 {[%clk 0:01:49]} 16. f3 {[%clk 0:01:51.2]} 16... Bd7 {[%clk
0:01:43.8]} 17. Kf2 {[%clk 0:01:48.9]} 17... Rad8 {[%clk 0:01:38.7]} 18. Nf1
{[%clk 0:01:40.2]} 18... h5 {[%clk 0:01:22.4]} 19. Ne3 {[%clk 0:01:38.8]} 19...
Rg8 {[%clk 0:01:14.1]} 20. Rhc1 {[%clk 0:01:03.5]} 20... Rb8 {[%clk 0:01:04.3]}
21. Qc2 {[%clk 0:00:48.7]} 21... a6 {[%clk 0:01:00.2]} 22. Rh1 {[%clk
0:00:45.4]} 22... Kf8 {[%clk 0:00:50.7]} 23. Qb3 {[%clk 0:00:43.7]} 23... Ke8
{[%clk 0:00:47.4]} 24. Rhb1 {[%clk 0:00:41.3]} 24... Kd8 {[%clk 0:00:36.8]} 25.
Qc2 {[%clk 0:00:37.3]} 25... Rh8 {[%clk 0:00:31.9]} 26. Rh1 {[%clk 0:00:34.3]}
26... h4 {[%clk 0:00:28.9]} 27. gxh4 {[%clk 0:00:30.8]} 27... gxh4 {[%clk
0:00:24.4]} 28. f4 {[%clk 0:00:30]} 28... Qxc3 {[%clk 0:00:16.5]} 29. Bd3 {[%clk
0:00:26.4]} 29... Qd4 {[%clk 0:00:14.7]} 30. Kf3 {[%clk 0:00:21.5]} 30... Rg8
{[%clk 0:00:13.6]} 31. Rxh4 {[%clk 0:00:20.2]} 31... Kc7 {[%clk 0:00:12.5]} 32.
Rah1 {[%clk 0:00:16]} 32... Rg7 {[%clk 0:00:12]} 33. g3 {[%clk 0:00:10.7]} 33...
Rbg8 {[%clk 0:00:11.5]} 34. Rg1 {[%clk 0:00:08.8]} 34... Ng4 {[%clk 0:00:09]}
35. Nxg4 {[%clk 0:00:05.9]} 35... Qxg1 {[%clk 0:00:05.3]} 36. f5 {[%clk
0:00:05.4]} 36... Rg5 {[%clk 0:00:02.1]} 37. Qf2 {[%clk 0:00:03.5]} 37... Qxf2+
{[%clk 0:00:01.1]} 38. Nxf2 {[%clk 0:00:02.5]} 38... Rxg3+ {[%clk 0:00:01.3]}
39. Ke2 {[%clk 0:00:02.7]} 39... Rg2 {[%clk 0:00:01.8]} 40. Rh7 {[%clk
0:00:02.4]} 40... Bxa4 {[%clk 0:00:02.7]} 41. Rxf7 {[%clk 0:00:01.8]} 41... Bb3
{[%clk 0:00:03.1]} 42. Rxe7+ {[%clk 0:00:01.3]} 42... Kb6 {[%clk 0:00:04]} 43.
f6 {[%clk 0:00:01]} 43... a5 {[%clk 0:00:04.8]} 44. f7 {[%clk 0:00:00.8]} 44...
Rf8 {[%clk 0:00:05.2]} 45. e5 {[%clk 0:00:01.3]} 45... Rg7 {[%clk 0:00:05.7]}
0-1

[Event "*** Titled Tuesday Blitz"]
[Site "Chess.com"]
[Date "2020.12.29"]
[Round "9"]
[White "Jenia84"]
[Black "albi1999"]
[Result "1-0"]
[WhiteElo "2369"]
[BlackElo "2522"]
[TimeControl "180+1"]
[EndTime "11:45:38 PST"]
[Termination "Jenia84 won by resignation"]

1. Nf3 {[%clk 0:03:00.9]} 1... c5 {[%clk 0:02:58.2]} 2. b3 {[%clk 0:02:46.7]}
2... Nc6 {[%clk 0:02:57.6]} 3. Bb2 {[%clk 0:02:47.1]} 3... Nf6 {[%clk
0:02:56.2]} 4. e3 {[%clk 0:02:44.3]} 4... d5 {[%clk 0:02:55.5]} 5. Bb5 {[%clk
0:02:44.1]} 5... Bd7 {[%clk 0:02:54.8]} 6. O-O {[%clk 0:02:42.4]} 6... g6 {[%clk
0:02:50.5]} 7. d3 {[%clk 0:02:42]} 7... Bg7 {[%clk 0:02:50.4]} 8. Nbd2 {[%clk
0:02:39.8]} 8... O-O {[%clk 0:02:50]} 9. Bxc6 {[%clk 0:02:39.5]} 9... Bxc6
{[%clk 0:02:49.8]} 10. Ne5 {[%clk 0:02:40.1]} 10... Be8 {[%clk 0:02:42.9]} 11.
f4 {[%clk 0:02:39.5]} 11... e6 {[%clk 0:02:27.4]} 12. Qe1 {[%clk 0:02:24.7]}
12... Nd7 {[%clk 0:02:24.3]} 13. Nxd7 {[%clk 0:02:17.5]} 13... Bxd7 {[%clk
0:02:04.4]} 14. Bxg7 {[%clk 0:02:15.3]} 14... Kxg7 {[%clk 0:02:05.3]} 15. e4
{[%clk 0:02:14.2]} 15... Bc6 {[%clk 0:01:52.3]} 16. Qf2 {[%clk 0:02:04.3]} 16...
d4 {[%clk 0:01:50.5]} 17. f5 {[%clk 0:01:58.3]} 17... exf5 {[%clk 0:01:47.4]}
18. exf5 {[%clk 0:01:58.2]} 18... f6 {[%clk 0:01:34.4]} 19. fxg6 {[%clk
0:01:50.9]} 19... hxg6 {[%clk 0:01:35.3]} 20. Rae1 {[%clk 0:01:48.6]} 20... Qd6
{[%clk 0:01:14.3]} 21. Ne4 {[%clk 0:01:33.6]} 21... Bxe4 {[%clk 0:01:09.5]} 22.
Rxe4 {[%clk 0:01:32.7]} 22... Rae8 {[%clk 0:01:02.1]} 23. Rfe1 {[%clk 0:01:32]}
23... Qd7 {[%clk 0:00:56.6]} 24. Qf3 {[%clk 0:01:26.6]} 24... b6 {[%clk
0:00:48.3]} 25. Qe2 {[%clk 0:01:09.9]} 25... Rxe4 {[%clk 0:00:36.2]} 26. Qxe4
{[%clk 0:01:09.8]} 26... Rf7 {[%clk 0:00:37.1]} 27. Qe6 {[%clk 0:00:52.6]} 27...
Qc7 {[%clk 0:00:36]} 28. Re4 {[%clk 0:00:47.6]} 28... Qb8 {[%clk 0:00:30.5]} 29.
a4 {[%clk 0:00:42.4]} 29... Qh8 {[%clk 0:00:25.7]} 30. g3 {[%clk 0:00:39.2]}
30... Qh5 {[%clk 0:00:25]} 31. Re2 {[%clk 0:00:30.7]} 31... Qf3 {[%clk
0:00:24.8]} 32. Qe4 {[%clk 0:00:29.4]} 32... Qxe4 {[%clk 0:00:21.6]} 33. Rxe4
{[%clk 0:00:29.1]} 33... Kf8 {[%clk 0:00:21.4]} 34. g4 {[%clk 0:00:26.8]} 34...
Rc7 {[%clk 0:00:21.1]} 35. h4 {[%clk 0:00:24.9]} 35... Kf7 {[%clk 0:00:21.5]}
36. Kf2 {[%clk 0:00:25]} 36... Rc8 {[%clk 0:00:21.4]} 37. Kg3 {[%clk 0:00:24.3]}
37... a6 {[%clk 0:00:21.9]} 38. g5 {[%clk 0:00:19.6]} 38... fxg5 {[%clk
0:00:21.4]} 39. hxg5 {[%clk 0:00:19.5]} 39... Rh8 {[%clk 0:00:22.3]} 40. Rf4+
{[%clk 0:00:18.5]} 40... Kg7 {[%clk 0:00:20.5]} 41. Rf6 {[%clk 0:00:18.5]} 41...
Rh5 {[%clk 0:00:18.7]} 42. Rxb6 {[%clk 0:00:17.7]} 42... Rxg5+ {[%clk
0:00:19.4]} 43. Kf2 {[%clk 0:00:17.3]} 43... Rf5+ {[%clk 0:00:19.4]} 44. Kg2
{[%clk 0:00:15.8]} 44... Re5 {[%clk 0:00:19.4]} 45. Rxa6 {[%clk 0:00:14.2]}
45... Re2+ {[%clk 0:00:19.3]} 46. Kf3 {[%clk 0:00:14.5]} 46... Rxc2 {[%clk
0:00:20.2]} 47. Rc6 {[%clk 0:00:12.4]} 47... Rc3 {[%clk 0:00:20]} 48. Ke4 {[%clk
0:00:12.7]} 48... Rxb3 {[%clk 0:00:20.3]} 49. Rxc5 {[%clk 0:00:12.5]} 49... Rb4
{[%clk 0:00:20.2]} 50. a5 {[%clk 0:00:12.5]} 50... Ra4 {[%clk 0:00:19.8]} 51.
Rd5 {[%clk 0:00:07.5]} 51... Kf6 {[%clk 0:00:19.3]} 52. Kf4 {[%clk 0:00:07.7]}
52... Ke6 {[%clk 0:00:16.8]} 53. Rb5 {[%clk 0:00:07.3]} 53... Ra3 {[%clk
0:00:13.9]} 54. Ke4 {[%clk 0:00:06.5]} 54... Ra4 {[%clk 0:00:13.1]} 55. Rb6+
{[%clk 0:00:06.5]} 55... Kf7 {[%clk 0:00:13.6]} 56. a6 {[%clk 0:00:06.9]} 56...
g5 {[%clk 0:00:10]} 57. Kf5 {[%clk 0:00:05.5]} 57... Ra3 {[%clk 0:00:10.6]} 58.
Rb7+ {[%clk 0:00:04.9]} 58... Ke8 {[%clk 0:00:10.9]} 59. a7 {[%clk 0:00:05.1]}
59... Kd8 {[%clk 0:00:10.1]} 60. Rb8+ {[%clk 0:00:05.2]} 60... Kc7 {[%clk
0:00:10.8]} 61. a8=Q {[%clk 0:00:06.1]} 1-0

[Event "*** Titled Tuesday Blitz"]
[Site "Chess.com"]
[Date "2020.12.29"]
[Round "9"]
[White "j2806"]
[Black "bylavochka"]
[Result "0-1"]
[WhiteElo "1977"]
[BlackElo "2138"]
[TimeControl "180+1"]
[EndTime "11:45:42 PST"]
[Termination "bylavochka won on time"]

1. e4 {[%clk 0:03:00.9]} 1... c5 {[%clk 0:02:58.7]} 2. Nf3 {[%clk 0:03:00.7]}
2... d6 {[%clk 0:02:58.3]} 3. d4 {[%clk 0:03:00.7]} 3... cxd4 {[%clk 0:02:59.2]}
4. Nxd4 {[%clk 0:03:00.3]} 4... Nf6 {[%clk 0:02:59.2]} 5. Nc3 {[%clk 0:03:00.9]}
5... g6 {[%clk 0:02:59.5]} 6. Be3 {[%clk 0:03:01.3]} 6... Bg7 {[%clk 0:02:59.8]}
7. f3 {[%clk 0:03:01.9]} 7... O-O {[%clk 0:03:00]} 8. Qd2 {[%clk 0:03:02.5]}
8... Nc6 {[%clk 0:03:00.1]} 9. O-O-O {[%clk 0:03:02.6]} 9... Nxd4 {[%clk
0:02:55.9]} 10. Bxd4 {[%clk 0:03:02.3]} 10... Be6 {[%clk 0:02:56.4]} 11. Kb1
{[%clk 0:03:01.1]} 11... Qc7 {[%clk 0:02:53.6]} 12. h4 {[%clk 0:02:55.7]} 12...
Rfc8 {[%clk 0:02:45.2]} 13. g4 {[%clk 0:02:52.3]} 13... Qa5 {[%clk 0:02:43.1]}
14. h5 {[%clk 0:02:29.7]} 14... Rxc3 {[%clk 0:02:40.4]} 15. Qxc3 {[%clk
0:02:23.4]} 15... Qxa2+ {[%clk 0:02:38.9]} 16. Kc1 {[%clk 0:02:23.1]} 16... Qa1+
{[%clk 0:02:38.2]} 17. Kd2 {[%clk 0:02:22.6]} 17... Qa4 {[%clk 0:02:38.8]} 18.
hxg6 {[%clk 0:02:12.3]} 18... hxg6 {[%clk 0:02:25.3]} 19. b3 {[%clk 0:02:05.6]}
19... Nxe4+ {[%clk 0:02:22.7]} 20. fxe4 {[%clk 0:01:53.8]} 20... Qxd4+ {[%clk
0:02:22.2]} 21. Qxd4 {[%clk 0:01:50.8]} 21... Bxd4 {[%clk 0:02:23.1]} 22. Kc1
{[%clk 0:01:48]} 22... Be3+ {[%clk 0:02:06.4]} 23. Kb1 {[%clk 0:01:41.5]} 23...
Bxg4 {[%clk 0:02:05.8]} 24. Rd3 {[%clk 0:01:35.1]} 24... Bf4 {[%clk 0:01:58.1]}
25. Rh4 {[%clk 0:01:30.5]} 25... f5 {[%clk 0:01:49.6]} 26. exf5 {[%clk 0:01:18]}
26... gxf5 {[%clk 0:01:50.5]} 27. Bh3 {[%clk 0:01:14.7]} 27... Bg5 {[%clk
0:01:36.5]} 28. Bxg4 {[%clk 0:01:09.1]} 28... Bxh4 {[%clk 0:01:35.7]} 29. Bxf5
{[%clk 0:01:09.7]} 29... Kf7 {[%clk 0:01:33]} 30. Be4 {[%clk 0:01:08]} 30... Bf6
{[%clk 0:01:30.8]} 31. Bxb7 {[%clk 0:01:05.7]} 31... Rh8 {[%clk 0:01:24.1]} 32.
Rd1 {[%clk 0:00:57.5]} 32... Ke6 {[%clk 0:01:23.5]} 33. Bd5+ {[%clk 0:00:56.9]}
33... Ke5 {[%clk 0:01:22.1]} 34. Bc4 {[%clk 0:00:52.6]} 34... Rd8 {[%clk
0:01:14.6]} 35. Rd5+ {[%clk 0:00:47.2]} 35... Ke4 {[%clk 0:01:13.5]} 36. Kc1
{[%clk 0:00:44]} 36... e6 {[%clk 0:01:10.5]} 37. Rd1 {[%clk 0:00:43.4]} 37... d5
{[%clk 0:01:09.4]} 38. Bd3+ {[%clk 0:00:43.9]} 38... Kf4 {[%clk 0:01:06.8]} 39.
Kd2 {[%clk 0:00:40.4]} 39... Bd4 {[%clk 0:00:53.7]} 40. Rf1+ {[%clk 0:00:35.2]}
40... Ke5 {[%clk 0:00:52.3]} 41. c3 {[%clk 0:00:33.9]} 41... Bb6 {[%clk
0:00:50.7]} 42. Re1+ {[%clk 0:00:31.8]} 42... Kd6 {[%clk 0:00:50.7]} 43. Bc2
{[%clk 0:00:28.1]} 43... Rh8 {[%clk 0:00:48.8]} 44. Re2 {[%clk 0:00:26.6]} 44...
e5 {[%clk 0:00:46.6]} 45. c4 {[%clk 0:00:20.2]} 45... Ba5+ {[%clk 0:00:38.8]}
46. Kc1 {[%clk 0:00:16.2]} 46... d4 {[%clk 0:00:38.8]} 47. Bd3 {[%clk 0:00:14]}
47... Bc3 {[%clk 0:00:34.6]} 48. Kc2 {[%clk 0:00:13.7]} 48... Rh1 {[%clk
0:00:24.7]} 49. Rg2 {[%clk 0:00:12.7]} 49... Ra1 {[%clk 0:00:19.2]} 50. Rg6+
{[%clk 0:00:12.5]} 50... Ke7 {[%clk 0:00:17.9]} 51. Rg7+ {[%clk 0:00:12.4]}
51... Kf6 {[%clk 0:00:17.9]} 52. Rb7 {[%clk 0:00:11.3]} 52... Ra2+ {[%clk
0:00:14.6]} 53. Kc1 {[%clk 0:00:07.1]} 53... Kg5 {[%clk 0:00:13.8]} 54. Re7
{[%clk 0:00:06.4]} 54... Kf4 {[%clk 0:00:13.2]} 55. Rh7 {[%clk 0:00:05]} 55...
Ra1+ {[%clk 0:00:05.9]} 56. Kc2 {[%clk 0:00:04.7]} 56... Rg1 {[%clk 0:00:05.6]}
57. Rh4+ {[%clk 0:00:03.5]} 57... Kg3 {[%clk 0:00:04.6]} 58. Re4 {[%clk
0:00:02]} 58... Rg2+ {[%clk 0:00:04.8]} 59. Kc1 {[%clk 0:00:02]} 59... Rb2
{[%clk 0:00:04.6]} 60. Bc2 {[%clk 0:00:01.7]} 60... Ra2 {[%clk 0:00:02.9]} 0-1

[Event "*** Titled Tuesday Blitz"]
[Site "Chess.com"]
[Date "2020.12.29"]
[Round "9"]
[White "wonderfultime"]
[Black "AryanTari"]
[Result "1/2-1/2"]
[WhiteElo "3010"]
[BlackElo "2897"]
[TimeControl "180+1"]
[EndTime "11:45:44 PST"]
[Termination "Game drawn - insufficient material"]

1. d4 {[%clk 0:03:00.9]} 1... Nf6 {[%clk 0:02:49.3]} 2. Nf3 {[%clk 0:03:01]}
2... g6 {[%clk 0:02:47.3]} 3. Bg5 {[%clk 0:03:01]} 3... Bg7 {[%clk 0:02:44.4]}
4. Nbd2 {[%clk 0:03:01.5]} 4... c5 {[%clk 0:02:43.8]} 5. c3 {[%clk 0:03:01.8]}
5... cxd4 {[%clk 0:02:36.6]} 6. cxd4 {[%clk 0:03:02.7]} 6... O-O {[%clk
0:02:36.3]} 7. e3 {[%clk 0:03:01.8]} 7... h6 {[%clk 0:02:32.4]} 8. Bh4 {[%clk
0:02:59.7]} 8... Qb6 {[%clk 0:02:30.1]} 9. Qb3 {[%clk 0:02:56.2]} 9... d6 {[%clk
0:02:28.5]} 10. Bd3 {[%clk 0:02:52.4]} 10... Be6 {[%clk 0:02:27.6]} 11. Qxb6
{[%clk 0:02:39.1]} 11... axb6 {[%clk 0:02:28.5]} 12. a3 {[%clk 0:02:39.7]} 12...
g5 {[%clk 0:02:20.9]} 13. Bg3 {[%clk 0:02:38.6]} 13... Nh5 {[%clk 0:02:21]} 14.
Rc1 {[%clk 0:02:34.4]} 14... Nc6 {[%clk 0:02:18.3]} 15. O-O {[%clk 0:02:07.5]}
15... f5 {[%clk 0:02:12.7]} 16. Rfe1 {[%clk 0:01:49.9]} 16... Kh8 {[%clk
0:02:04.7]} 17. Bb5 {[%clk 0:01:32.6]} 17... Bd5 {[%clk 0:02:00.5]} 18. Nc4
{[%clk 0:01:18.7]} 18... f4 {[%clk 0:01:45.1]} 19. exf4 {[%clk 0:01:10.1]} 19...
Bxf3 {[%clk 0:01:34.9]} 20. gxf3 {[%clk 0:01:02.8]} 20... Nxd4 {[%clk
0:01:35.4]} 21. Nxb6 {[%clk 0:00:33.3]} 21... Ra5 {[%clk 0:01:33.3]} 22. Be2
{[%clk 0:00:28.8]} 22... Nxf4 {[%clk 0:01:23]} 23. Bxf4 {[%clk 0:00:28.8]} 23...
Rxf4 {[%clk 0:01:22.4]} 24. Rc8+ {[%clk 0:00:28.4]} 24... Rf8 {[%clk 0:01:12.4]}
25. Rxf8+ {[%clk 0:00:24.3]} 25... Bxf8 {[%clk 0:01:13.3]} 26. Bd1 {[%clk
0:00:19.6]} 26... Kg7 {[%clk 0:01:08.1]} 27. Kg2 {[%clk 0:00:16.7]} 27... Rb5
{[%clk 0:01:05.5]} 28. Nc4 {[%clk 0:00:16.5]} 28... d5 {[%clk 0:01:03.3]} 29.
Ne3 {[%clk 0:00:16.8]} 29... e6 {[%clk 0:00:59.6]} 30. b4 {[%clk 0:00:17.1]}
30... Rb6 {[%clk 0:00:59.9]} 31. Nc2 {[%clk 0:00:16]} 31... Nf5 {[%clk
0:00:50.9]} 32. Be2 {[%clk 0:00:16.1]} 32... Kf6 {[%clk 0:00:48.5]} 33. Bd3
{[%clk 0:00:14]} 33... Nh4+ {[%clk 0:00:48.5]} 34. Kg3 {[%clk 0:00:14.5]} 34...
Bd6+ {[%clk 0:00:48.5]} 35. Kg4 {[%clk 0:00:10.9]} 35... Bxh2 {[%clk 0:00:43]}
36. Rh1 {[%clk 0:00:05.7]} 36... Bd6 {[%clk 0:00:35]} 37. f4 {[%clk 0:00:05.8]}
37... Rc6 {[%clk 0:00:29.2]} 38. Ne3 {[%clk 0:00:02.7]} 38... Rc3 {[%clk
0:00:27.5]} 39. Bb1 {[%clk 0:00:02.1]} 39... Rxa3 {[%clk 0:00:21.6]} 40. fxg5+
{[%clk 0:00:02.2]} 40... hxg5 {[%clk 0:00:22.5]} 41. Kh5 {[%clk 0:00:01.9]}
41... Bf4 {[%clk 0:00:16.7]} 42. Ng4+ {[%clk 0:00:02.4]} 42... Ke7 {[%clk
0:00:17.2]} 43. Bc2 {[%clk 0:00:03.3]} 43... Rc3 {[%clk 0:00:17.2]} 44. Bd1
{[%clk 0:00:03.4]} 44... Rc4 {[%clk 0:00:17.4]} 45. b5 {[%clk 0:00:03.3]} 45...
Rc1 {[%clk 0:00:17.1]} 46. Rf1 {[%clk 0:00:03.1]} 46... Nf5 {[%clk 0:00:17.3]}
47. Be2 {[%clk 0:00:03.1]} 47... Rxf1 {[%clk 0:00:15.1]} 48. Bxf1 {[%clk
0:00:04]} 48... Nd6 {[%clk 0:00:15.7]} 49. Kg6 {[%clk 0:00:03.6]} 49... e5
{[%clk 0:00:15.2]} 50. Nh6 {[%clk 0:00:02.9]} 50... e4 {[%clk 0:00:14.3]} 51.
Ng8+ {[%clk 0:00:01.9]} 51... Ke6 {[%clk 0:00:14.4]} 52. Nf6 {[%clk 0:00:02.5]}
52... Ke5 {[%clk 0:00:14.6]} 53. Nd7+ {[%clk 0:00:01.9]} 53... Kd4 {[%clk
0:00:14.1]} 54. Kf6 {[%clk 0:00:02.5]} 54... Nc4 {[%clk 0:00:13.4]} 55. Ke6
{[%clk 0:00:02.7]} 55... e3 {[%clk 0:00:13]} 56. fxe3+ {[%clk 0:00:03.6]} 56...
Nxe3 {[%clk 0:00:13.9]} 57. Be2 {[%clk 0:00:04]} 57... g4 {[%clk 0:00:14.5]} 58.
Nf6 {[%clk 0:00:03.9]} 58... g3 {[%clk 0:00:14.3]} 59. Bf3 {[%clk 0:00:04.5]}
59... Be5 {[%clk 0:00:07.8]} 60. Nxd5 {[%clk 0:00:04.6]} 60... Nxd5 {[%clk
0:00:08.1]} 61. Bxd5 {[%clk 0:00:05.5]} 61... Bc7 {[%clk 0:00:07.5]} 62. Bxb7
{[%clk 0:00:05.6]} 62... Kc5 {[%clk 0:00:07.6]} 63. Bc6 {[%clk 0:00:05.8]} 63...
g2 {[%clk 0:00:07.6]} 64. Bxg2 {[%clk 0:00:06.4]} 64... Kxb5 {[%clk 0:00:08.4]}
1/2-1/2